bitfinex/quotes_BTCUSD_20241216
["timestamp","ask_amount","ask_price","bid_price","bid_amount"]
[1734332525337,0.190396,105050.0,105030.0,0.00016837]
[1734332525564,0.380796,105050.0,105030.0,0.00016837]
[1734332525810,0.571196,105050.0,105030.0,0.00016837]
[1734332526711,0.653396,105050.0,105030.0,0.00016837]
[1734332527548,0.462996,105050.0,105030.0,0.00016837]
[1734332527771,0.653395,105050.0,105030.0,0.19058937]
[1734332529017,0.653395,105050.0,105030.0,0.00016837]
[1734332529214,0.72899719,105050.0,105030.0,0.00016837]
[1734332529449,0.25213058,105040.0,105030.0,0.00016837]
[1734332529671,0.42292128,105040.0,105030.0,0.00016837]
[1734332530302,0.23251828,105040.0,105030.0,0.00016837]
[1734332530498,0.42292128,105040.0,105030.0,0.00016837]
[1734332532070,0.48464886,105040.0,105030.0,0.00016837]
[1734332532322,0.46902128,105040.0,105030.0,0.00016837]
[1734332533986,0.4072937,105040.0,105030.0,0.00016837]
[1734332534118,0.3611937,105040.0,105030.0,0.00016837]
[1734332536703,0.190403,105040.0,105030.0,0.00016837]
[1734332539480,0.26529962,105040.0,105030.0,0.00016837]
[1734332539652,0.190403,105040.0,105030.0,0.00016837]
[1734332541101,0.271203,105040.0,105030.0,0.00016837]
[1734332541296,0.42722128,105040.0,105030.0,0.00016837]
[1734332541494,0.3654937,105040.0,105030.0,0.00016837]
[1734332543133,0.51132697,105040.0,105030.0,0.00016837]
[1734332543696,0.3654937,105040.0,105030.0,0.00016837]
[1734332545073,0.42722128,105040.0,105030.0,0.00016837]
[1734332546221,0.63894886,105040.0,105030.0,0.00016837]
[1734332547157,0.76134886,105040.0,105030.0,0.00016837]
[1734332547358,0.84632668,105040.0,105030.0,0.00016837]
[1734332547559,0.94050194,105040.0,105030.0,0.00016837]
[1734332547760,1.06796867,105040.0,105030.0,0.00016837]
[1734332547975,0.94050194,105040.0,105030.0,0.00016837]
[1734332548609,1.06796867,105040.0,105030.0,0.00016837]
[1734332549607,1.23792432,105040.0,105030.0,0.00016837]
[1734332550544,1.11796867,105040.0,105030.0,0.00016837]
[1734332550794,1.28792432,105040.0,105030.0,0.00016837]
[1734332552678,1.53792432,105040.0,105030.0,0.00016837]
[1734332553138,1.75036888,105040.0,105030.0,0.00016837]
[1734332553340,0.50494858,105030.0,105020.0,0.00013768]
[1734332553542,0.64923928,105030.0,105020.0,0.00013768]
[1734332553746,0.73430566,105030.0,105020.0,0.00013768]
[1734332554071,0.86177239,105030.0,105020.0,0.00013768]
[1734332557447,0.86203654,105030.0,105020.0,0.00013768]
[1734332557899,0.81203654,105030.0,105020.0,0.00013768]
[1734332558155,0.61821896,105030.0,105020.0,0.00013768]
[1734332559016,0.67994654,105030.0,105020.0,0.00013768]
[1734332562074,0.53841896,105030.0,105020.0,0.00013768]
[1734332562274,0.30330006,105030.0,105020.0,0.00013768]
[1734332563594,0.31720279,105030.0,105020.0,0.00013768]
[1734332564002,0.31720279,105030.0,105020.0,0.19057668]
[1734332564179,0.10819343,105030.0,105020.0,0.19057668]
[1734332564429,0.10819343,105030.0,105020.0,0.26787668]
[1734332565212,0.01390273,105030.0,105020.0,0.26787668]
[1734332565413,0.75382224,105040.0,105020.0,0.26787668]
[1734332565574,0.84811294,105040.0,105020.0,0.26787668]
[1734332566401,0.65769694,105040.0,105020.0,0.26787668]
[1734332566623,0.84811394,105040.0,105020.0,0.26787668]
[1734332567906,0.38948194,105040.0,105020.0,0.52003426]
[1734332568042,0.38948194,105040.0,105020.0,0.76036426]
[1734332568264,0.31798592,105040.0,105020.0,0.76036426]
[1734332568467,0.20428056,105040.0,105020.0,0.76036426]
[1734332570237,0.01387756,105040.0,105030.0,0.190421]
[1734332570439,0.01387756,105040.0,105030.0,0.32804858]
[1734332570656,0.01387756,105040.0,105030.0,0.37704858]
[1734332570862,0.00025468,105040.0,105030.0,0.37704858]
[1734332575319,0.54470091,105060.0,105030.0,0.56746958]
[1734332575539,0.63899161,105060.0,105030.0,0.56763786]
[1734332575753,0.63899161,105060.0,105040.0,0.190399]
[1734332576603,0.5536447,105060.0,105040.0,0.190399]
[1734332576821,0.70071919,105060.0,105030.0,0.50591028]
[1734332577039,0.190385,105050.0,105030.0,0.50591028]
[1734332577270,0.38078,105050.0,105030.0,0.31548928]
[1734332577473,0.190385,105050.0,105030.0,0.50590028]
[1734332577688,0.190385,105050.0,105030.0,0.69630828]
[1734332578270,0.190385,105050.0,105030.0,0.50588728]
[1734332580155,0.71447841,105060.0,105030.0,0.50588728]
[1734332580353,0.80865367,105060.0,105030.0,0.50588728]
[1734332580502,0.190386,105050.0,105030.0,0.50588728]
[1734332580706,0.61780428,105050.0,105030.0,0.00016828]
[1734332580872,0.190403,105040.0,105030.0,0.00016828]
[1734332581073,0.271403,105040.0,105030.0,0.00016828]
[1734332582961,0.6037097,105040.0,105010.0,0.44315658]
[1734332583108,0.190423,105030.0,105010.0,0.44315658]
[1734332584132,0.190423,105030.0,105010.0,0.44316558]
[1734332585189,0.60387807,105040.0,105010.0,0.44316558]
[1734332585358,0.190423,105030.0,105010.0,0.44316558]
[1734332588164,0.80775477,105040.0,105010.0,0.63361258]
[1734332588335,0.42692277,105040.0,105010.0,0.53709782]
[1734332588562,0.190421,105030.0,105010.0,0.53709782]
[1734332590236,0.42693577,105040.0,105010.0,0.72754482]
[1734332590444,0.61735277,105040.0,105010.0,0.53709782]
[1734332590652,0.80777377,105040.0,105010.0,0.53709782]
[1734332590856,0.80777377,105040.0,105010.0,0.53727062]
[1734332593553,0.190423,105030.0,105010.0,0.53727062]
[1734332593765,0.42693577,105040.0,105010.0,0.72771862]
[1734332593766,0.61735277,105040.0,105010.0,0.72771862]
[1734332593981,0.00016837,105040.0,105030.0,0.28436324]
[1734332594186,0.00016837,105040.0,105030.0,0.41246324]
[1734332594591,0.00016837,105040.0,105030.0,0.318521]
[1734332595209,0.59444314,105060.0,105030.0,0.318521]
[1734332595417,0.59444314,105060.0,105030.0,0.31868937]
[1734332595418,0.7829091,105060.0,105030.0,0.31868937]
[1734332595617,0.190385,105050.0,105030.0,0.50910037]
[1734332595822,0.190385,105050.0,105030.0,0.69951137]
[1734332596264,0.190385,105050.0,105030.0,0.50909037]
[1734332599147,0.380771,105050.0,105030.0,0.50909037]
[1734332602434,0.380771,105050.0,105030.0,0.50926317]
[1734332603229,0.3808574,105050.0,105030.0,0.50926317]
[1734332603424,0.4582574,105050.0,105030.0,0.00034117]
[1734332603629,0.63789533,105050.0,105030.0,0.00034117]
[1734332603853,0.267803,105040.0,105030.0,0.00034117]
[1734332605122,0.20180299,105040.0,105030.0,0.00034117]
[1734332605326,0.0774,105040.0,105030.0,0.00034117]
[1734332605998,0.267803,105040.0,105030.0,0.00034117]
[1734332606624,0.72132547,105050.0,105030.0,0.25240524]
[1734332607040,0.54820463,105050.0,105030.0,0.25240524]
[1734332607451,0.54820463,105050.0,105030.0,0.19076217]
[1734332607657,0.54820463,105050.0,105030.0,0.25240524]
[1734332607863,0.67622547,105050.0,105030.0,0.44282624]
[1734332608689,0.35781863,105050.0,105030.0,0.38117317]
[1734332609103,0.54821263,105050.0,105030.0,0.38117317]
[1734332609309,0.67623347,105050.0,105030.0,0.38117317]
[1734332610323,0.86662947,105050.0,105030.0,0.38117317]
[1734332610738,0.67623347,105050.0,105030.0,0.38117317]
[1734332611283,1.03732593,105050.0,105030.0,0.19075217]
[1734332611491,0.86663147,105050.0,105030.0,0.19075217]
[1734332612958,0.67623347,105050.0,105030.0,0.19075217]
[1734332613958,0.67623347,105050.0,105030.0,0.38117317]
[1734332614166,0.86663147,105050.0,105030.0,0.38117317]
[1734332615094,0.67623347,105050.0,105030.0,0.38117317]
[1734332615297,1.060296,105050.0,105030.0,0.38117317]
[1734332616327,1.060296,105050.0,105030.0,0.19075217]
[1734332616943,0.84692793,105050.0,105030.0,0.19075217]
[1734332617158,0.84692793,105050.0,105040.0,0.190403]
[1734332617159,0.38414893,105050.0,105040.0,0.190403]
[1734332617796,0.57453393,105050.0,105040.0,0.190403]
[1734332619175,0.38414893,105050.0,105040.0,0.190403]
[1734332620217,0.08543363,105050.0,105040.0,0.190403]
[1734332621282,0.08554697,105050.0,105040.0,0.190403]
[1734332621487,0.08554697,105050.0,105040.0,0.25204607]
[1734332621682,0.08554697,105050.0,105040.0,0.33114607]
[1734332621683,8.64e-05,105050.0,105040.0,0.33114607]
[1734332625226,1.16628241,105070.0,105050.0,0.190385]
[1734332625227,1.17562434,105070.0,105050.0,0.190385]
[1734332625425,1.07955404,105070.0,105050.0,0.190385]
[1734332625831,1.06606401,105070.0,105050.0,0.190385]
[1734332626238,0.89522396,105070.0,105050.0,0.190385]
[1734332626451,0.90799579,105070.0,105050.0,0.380761]
[1734332626648,0.69835057,105070.0,105050.0,0.571136]
[1734332627009,0.60405987,105070.0,105050.0,0.571136]
[1734332627436,0.79441787,105070.0,105050.0,0.380751]
[1734332628933,0.98477887,105070.0,105050.0,0.190375]
[1734332629134,0.88859313,105070.0,105050.0,0.190375]
[1734332630019,0.79441787,105070.0,105050.0,0.380759]
[1734332630283,0.45405987,105070.0,105050.0,0.380759]
[1734332630704,0.32592983,105070.0,105050.0,0.380759]
[1734332632127,0.51628683,105070.0,105050.0,0.380759]
[1734332632985,0.32592883,105070.0,105050.0,0.571135]
[1734332633198,0.13557183,105070.0,105050.0,0.571135]
[1734332633878,0.13557183,105070.0,105050.0,0.63277807]
[1734332634542,0.01277183,105070.0,105060.0,0.190367]
[1734332634967,0.60773329,105080.0,105060.0,0.190367]
[1734332635203,0.86390444,105080.0,105060.0,0.190367]
[1734332635424,0.84498219,105080.0,105060.0,0.190367]
[1734332635635,0.84498219,105080.0,105060.0,0.380734]
[1734332636683,8.63e-05,105070.0,105060.0,0.380734]
[1734332640018,8.63e-05,105070.0,105060.0,0.190367]
[1734332640240,0.17802533,105080.0,105060.0,0.380734]
[1734332640454,0.36836433,105080.0,105060.0,0.380734]
[1734332643221,0.17802533,105080.0,105060.0,0.571092]
[1734332643650,0.17802533,105080.0,105060.0,0.380725]
[1734332643884,0.36835833,105080.0,105060.0,0.380725]
[1734332644499,0.28304343,105080.0,105060.0,0.380725]
[1734332644715,0.28304343,105080.0,105060.0,0.571082]
[1734332644925,0.28304343,105080.0,105060.0,0.571072]
[1734332646234,0.28304343,105080.0,105060.0,0.380714]
[1734332646466,0.28304343,105080.0,105060.0,0.571071]
[1734332647203,0.09271043,105080.0,105060.0,0.380714]
[1734332647429,0.09271043,105080.0,105070.0,0.190349]
[1734332647645,0.09271043,105080.0,105060.0,0.190357]
[1734332647887,0.09271043,105080.0,105060.0,0.571067]
[1734332648305,0.09279673,105080.0,105060.0,0.571067]
[1734332648720,0.09295707,105080.0,105060.0,0.380709]
[1734332648954,0.28328807,105080.0,105060.0,0.571065]
[1734332649790,0.28328807,105080.0,105060.0,0.571064]
[1734332650259,0.36856071,105080.0,105060.0,0.571064]
[1734332651103,0.28328807,105080.0,105060.0,0.380708]
[1734332651309,0.28328807,105080.0,105060.0,0.571066]
[1734332652382,0.28328807,105080.0,105060.0,0.190352]
[1734332652593,0.28328807,105080.0,105060.0,0.380708]
[1734332653048,0.28328807,105080.0,105060.0,0.571064]
[1734332653502,0.36856071,105080.0,105060.0,0.571064]
[1734332654418,0.36854434,105080.0,105060.0,0.571064]
[1734332655243,0.36854434,105080.0,105060.0,0.571065]
[1734332655662,0.17821334,105080.0,105060.0,0.571065]
[1734332656857,0.36854534,105080.0,105060.0,0.571065]
[1734332658482,0.28328907,105080.0,105060.0,0.380708]
[1734332658818,0.36857291,105080.0,105060.0,0.571065]
[1734332659345,0.28328907,105080.0,105060.0,0.5712376]
[1734332659547,0.36857291,105080.0,105060.0,0.5712376]
[1734332661309,0.49649868,105080.0,105060.0,0.5712376]
[1734332661489,0.49649868,105080.0,105060.0,0.3808806]
[1734332662655,0.49649868,105080.0,105060.0,0.5712376]
[1734332663060,0.49660097,105080.0,105060.0,0.5712376]
[1734332663622,0.49660097,105080.0,105060.0,0.3808806]
[1734332664083,0.49660097,105080.0,105060.0,0.5712376]
[1734332667250,0.66755907,105080.0,105060.0,0.5712376]
[1734332667514,0.47722707,105080.0,105070.0,0.190349]
[1734332667702,0.3064404,105080.0,105070.0,0.190349]
[1734332667920,0.3064404,105080.0,105060.0,0.3808806]
[1734332668126,0.3064404,105080.0,105060.0,0.5712396]
[1734332668331,0.47722707,105080.0,105060.0,0.5712396]
[1734332668952,0.3064404,105080.0,105060.0,0.5712396]
[1734332669365,0.47722707,105080.0,105060.0,0.5712396]
[1734332669567,0.3064404,105080.0,105060.0,0.5712396]
[1734332669772,0.47722707,105080.0,105060.0,0.5712396]
[1734332669979,0.66755807,105080.0,105060.0,0.5712396]
[1734332671670,0.66771078,105080.0,105060.0,0.5712396]
[1734332671891,0.66771078,105080.0,105060.0,0.5712376]
[1734332676723,0.08542727,105070.0,105060.0,0.3808806]
[1734332680160,0.08544862,105070.0,105060.0,0.3808776]
[1734332681497,0.01944861,105070.0,105060.0,0.3808776]
[1734332682340,0.77268924,105080.0,105060.0,0.3808776]
[1734332682686,0.58235824,105080.0,105060.0,0.3808776]
[1734332682898,0.58235824,105080.0,105060.0,0.5712346]
[1734332683315,0.82039724,105080.0,105060.0,0.3808776]
[1734332683525,0.89633101,105080.0,105060.0,0.0001726]
[1734332683729,0.33519207,105070.0,105060.0,0.0001726]
[1734332683931,0.463365,105070.0,105060.0,0.0001726]
[1734332684139,0.40172193,105070.0,105060.0,0.0001726]
[1734332684564,0.40174231,105070.0,105060.0,0.0001726]
[1734332685191,0.21139331,105070.0,105060.0,0.0001726]
[1734332685407,0.0832,105070.0,105060.0,0.1905396]
[1734332686983,0.0832,105070.0,105050.0,0.190374]
[1734332687945,0.0832,105070.0,105060.0,0.190367]
[1734332690004,0.72090952,105080.0,105060.0,0.380733]
[1734332690210,0.34668959,105080.0,105060.0,0.380733]
[1734332690643,0.53702959,105080.0,105060.0,0.380733]
[1734332691458,0.62250193,105080.0,105060.0,0.380733]
[1734332691853,0.63837898,105080.0,105060.0,0.380733]
[1734332694093,0.63846528,105080.0,105060.0,0.571091]
[1734332694213,0.63846528,105080.0,105060.0,0.380724]
[1734332694411,0.42479405,105080.0,105060.0,0.380724]
[1734332694628,0.63851613,105080.0,105060.0,0.380724]
[1734332695990,0.80949379,105080.0,105060.0,0.380724]
[1734332696401,0.63851613,105080.0,105060.0,0.380724]
[1734332696603,0.63851613,105080.0,105060.0,0.57108]
[1734332696858,0.63851613,105080.0,105060.0,0.380714]
[1734332697057,0.08548883,105070.0,105060.0,0.380713]
[1734332698050,0.085486,105070.0,105060.0,0.380713]
[1734332700377,0.01948599,105070.0,105060.0,0.380713]
[1734332700599,0.72399505,105080.0,105060.0,0.380713]
[1734332701003,0.55302305,105080.0,105060.0,0.190357]
[1734332701229,0.55302305,105080.0,105060.0,0.380715]
[1734332701429,0.80500389,105080.0,105060.0,0.190357]
[1734332701631,0.97597425,105080.0,105060.0,0.190357]
[1734332702868,0.25199207,105070.0,105050.0,0.4631226]
[1734332703124,0.33161007,105060.0,105050.0,0.0001726]
[1734332703337,0.39325314,105060.0,105050.0,0.0001726]
[1734332703549,0.48283784,105060.0,105050.0,0.0001726]
[1734332703761,0.52963784,105060.0,105050.0,0.0001726]
[1734332704589,0.40141007,105060.0,105050.0,0.0001726]
[1734332704999,0.1264,105060.0,105050.0,0.0001726]
[1734332705200,0.06039999,105060.0,105050.0,0.0001726]
[1734332705612,0.0468,105060.0,105050.0,0.0001726]
[1734332708102,0.29881007,105060.0,105050.0,0.0001726]
[1734332708308,0.37761007,105060.0,105050.0,0.0001726]
[1734332710366,0.39348809,105060.0,105050.0,0.0001726]
[1734332710566,0.32748808,105060.0,105050.0,0.0001726]
[1734332711015,0.41283765,105060.0,105050.0,0.0001726]
[1734332712044,0.68594668,105060.0,105050.0,0.0001726]
[1734332712257,0.81397404,105060.0,105050.0,0.0001726]
[1734332712464,0.98462458,105060.0,105050.0,0.0001726]
[1734332712668,0.9846792,105060.0,105050.0,0.0001726]
[1734332712880,0.98457577,105060.0,105050.0,0.0001726]
[1734332713096,0.86397605,105060.0,105050.0,0.0001726]
[1734332713508,1.03450704,105060.0,105050.0,0.0001726]
[1734332713707,1.08040704,105060.0,105050.0,0.0001726]
[1734332714341,1.08018129,105060.0,105050.0,0.0001726]
[1734332714566,1.23018129,105060.0,105050.0,0.0001726]
[1734332715585,1.29182436,105060.0,105050.0,0.0001726]
[1734332715771,1.12129806,105060.0,105050.0,0.0001726]
[1734332716556,1.29164873,105060.0,105050.0,0.0001726]
[1734332718224,1.23000566,105060.0,105050.0,0.0001726]
[1734332718419,1.29164873,105060.0,105050.0,0.0001726]
[1734332718617,1.41937453,105060.0,105050.0,0.0001726]
[1734332719030,1.32519927,105060.0,105050.0,0.0001726]
[1734332719435,1.2635562,105060.0,105050.0,0.0001726]
[1734332719868,1.05039832,105060.0,105050.0,0.0001726]
[1734332720085,1.13553312,105060.0,105050.0,0.0001726]
[1734332720276,1.13553312,105060.0,105010.0,0.380896]
[1734332720277,0.06164307,105040.0,105010.0,0.380896]
[1734332720500,0.380818,105040.0,105020.0,0.190439]
[1734332720703,0.571233,105040.0,105020.0,0.190439]
[1734332721034,0.63287607,105040.0,105020.0,0.190439]
[1734332721739,0.63298282,105040.0,105020.0,0.190439]
[1734332722837,0.63298282,105040.0,105010.0,0.44253507]
[1734332723059,0.63298282,105040.0,105010.0,0.57134]
[1734332723265,0.63298282,105040.0,105010.0,0.70054]
[1734332723663,0.190423,105030.0,105010.0,0.70054]
[1734332723870,0.76318382,105040.0,105020.0,0.190439]
[1734332725978,0.78361089,105040.0,105020.0,0.190439]
[1734332727591,0.190421,105030.0,105010.0,0.700541]
[1734332728151,0.190421,105030.0,105010.0,0.7006273]
[1734332729332,0.190421,105030.0,105010.0,0.5101783]
[1734332729815,0.190421,105030.0,105010.0,0.7006263]
[1734332730150,0.190421,105030.0,105010.0,0.5101783]
[1734332730358,0.190421,105030.0,105010.0,0.7006253]
[1734332730999,0.78361189,105040.0,105020.0,0.190439]
[1734332731617,0.78361189,105040.0,105010.0,0.5101773]
[1734332731618,0.190421,105030.0,105010.0,0.7006243]
[1734332733080,0.44249807,105030.0,105010.0,0.3197303]
[1734332733283,0.52349807,105030.0,105010.0,0.3197303]
[1734332733520,0.71393407,105030.0,105010.0,0.3197303]
[1734332734349,0.52349807,105030.0,105010.0,0.3197303]
[1734332734818,0.461855,105030.0,105010.0,0.3197303]
[1734332735129,0.461855,105030.0,105010.0,0.06069841]
[1734332735305,0.461855,105030.0,105010.0,0.25114741]
[1734332736250,0.652288,105030.0,105010.0,0.25114741]
[1734332736606,0.461854,105030.0,105010.0,0.25114741]
[1734332737190,0.65229,105030.0,105010.0,0.25114741]
[1734332737790,0.190439,105020.0,105010.0,0.06069841]
[1734332738086,0.190439,105020.0,105010.0,8.63e-05]
[1734332740765,0.39022514,105020.0,105010.0,8.63e-05]
[1734332740990,0.43662514,105020.0,105010.0,8.63e-05]
[1734332741223,0.37062513,105020.0,105010.0,8.63e-05]
[1734332741430,0.34047684,105020.0,105010.0,8.63e-05]
[1734332741636,0.55391584,105020.0,105010.0,8.63e-05]
[1734332741857,0.6480911,105020.0,105010.0,8.63e-05]
[1734332742250,0.55391584,105020.0,105010.0,8.63e-05]
[1734332742448,0.49227277,105020.0,105010.0,8.63e-05]
[1734332744090,0.51240614,105020.0,105010.0,8.63e-05]
[1734332744778,0.57404921,105020.0,105010.0,8.63e-05]
[1734332745176,0.44640613,105020.0,105010.0,8.63e-05]
[1734332745524,0.5080492,105020.0,105010.0,8.63e-05]
[1734332745927,0.55454874,105020.0,105010.0,8.63e-05]
[1734332746346,0.5080492,105020.0,105010.0,8.63e-05]
[1734332746774,0.52700869,105020.0,105010.0,8.63e-05]
[1734332747121,0.46536562,105020.0,105010.0,8.63e-05]
[1734332748396,0.67700869,105020.0,105010.0,8.63e-05]
[1734332748614,0.88979595,105020.0,105010.0,8.63e-05]
[1734332748828,0.98397121,105020.0,105010.0,8.63e-05]
[1734332749044,1.15420102,105020.0,105010.0,8.63e-05]
[1734332749668,0.98397121,105020.0,105010.0,8.63e-05]
[1734332750511,0.86068507,105020.0,105010.0,8.63e-05]
[1734332750710,0.98397121,105020.0,105010.0,8.63e-05]
[1734332751352,1.15420102,105020.0,105010.0,8.63e-05]
[1734332751552,0.98397121,105020.0,105010.0,8.63e-05]
[1734332752602,1.15420102,105020.0,105010.0,8.63e-05]
[1734332752818,0.88979595,105020.0,105010.0,8.63e-05]
[1734332753609,0.88974692,105020.0,105010.0,8.63e-05]
[1734332754489,1.05993751,105020.0,105010.0,8.63e-05]
[1734332755398,1.18758046,105020.0,105010.0,8.63e-05]
[1734332756131,1.1876479,105020.0,105010.0,8.63e-05]
[1734332757593,1.18772389,105020.0,105010.0,8.63e-05]
[1734332759310,1.20830255,105020.0,105010.0,8.63e-05]
[1734332759508,1.06004158,105020.0,105010.0,8.63e-05]
[1734332760121,1.18772389,105020.0,105010.0,8.63e-05]
[1734332760521,1.0600335,105020.0,105010.0,8.63e-05]
[1734332761107,1.23763977,105020.0,105010.0,8.63e-05]
[1734332761317,1.109982,105020.0,105010.0,8.63e-05]
[1734332761514,1.20415726,105020.0,105010.0,8.63e-05]
[1734332762016,1.26580033,105020.0,105010.0,8.63e-05]
[1734332762275,1.20415726,105020.0,105010.0,8.63e-05]
[1734332763265,1.06449575,105020.0,105010.0,8.63e-05]
[1734332763436,1.12613882,105020.0,105010.0,8.63e-05]
[1734332763814,0.99845556,105020.0,105010.0,8.63e-05]
[1734332763939,0.8282452,105020.0,105010.0,8.63e-05]
[1734332765143,0.82819278,105020.0,105010.0,8.63e-05]
[1734332765349,0.76654971,105020.0,105010.0,8.63e-05]
[1734332765549,0.69010005,105020.0,105010.0,8.63e-05]
[1734332765687,0.75174312,105020.0,105010.0,8.63e-05]
[1734332765894,0.69010005,105020.0,105010.0,8.63e-05]
[1734332767176,0.75174312,105020.0,105010.0,8.63e-05]
[1734332769356,0.81769279,105020.0,105010.0,8.63e-05]
[1734332771628,0.87933586,105020.0,105010.0,8.63e-05]
[1734332772021,0.81769279,105020.0,105010.0,8.63e-05]
[1734332775809,0.70964972,105020.0,105010.0,8.63e-05]
[1734332776032,0.55964972,105020.0,105010.0,8.63e-05]
[1734332776242,0.43205698,105020.0,105010.0,8.63e-05]
[1734332777219,0.31476628,105020.0,105010.0,0.0788863]
[1734332777830,0.29580679,105020.0,105010.0,0.0788863]
[1734332779864,0.35744986,105020.0,105010.0,0.0788863]
[1734332780309,0.16701086,105020.0,105010.0,0.0788863]
[1734332780513,0.35744986,105020.0,105010.0,0.0788863]
[1734332783740,0.35744986,105020.0,105010.0,8.63e-05]
[1734332784481,0.4850426,105020.0,105010.0,8.63e-05]
[1734332785331,0.41904259,105020.0,105010.0,8.63e-05]
[1734332785543,0.43664675,105020.0,105010.0,8.63e-05]
[1734332786360,0.39766678,105020.0,105010.0,8.63e-05]
[1734332786551,0.39783938,105020.0,105010.0,8.63e-05]
[1734332789391,0.33619631,105020.0,105010.0,8.63e-05]
[1734332789781,0.01777676,105020.0,105010.0,0.2530983]
[1734332790197,0.31841355,105030.0,105010.0,0.2530983]
[1734332790654,0.57051444,105030.0,105010.0,0.2530983]
[1734332790816,0.76095244,105030.0,105010.0,0.2530983]
[1734332791236,0.63294907,105030.0,105010.0,0.2530983]
[1734332792873,0.76095244,105030.0,105010.0,0.2530983]
[1734332793285,0.63294907,105030.0,105010.0,0.2530983]
[1734332793908,0.65054429,105030.0,105010.0,0.2530983]
[1734332794263,0.25208207,105020.0,105010.0,0.0816863]
[1734332795016,0.190439,105020.0,105010.0,0.0816863]
[1734332795234,0.25208207,105020.0,105010.0,0.0816863]
[1734332795433,0.18608206,105020.0,105010.0,0.0816863]
[1734332795642,0.06164307,105020.0,105010.0,0.0816863]
[1734332795846,0.25208207,105020.0,105010.0,0.0816863]
[1734332796049,0.185439,105020.0,105010.0,0.0816863]
[1734332797621,0.73582615,105030.0,105010.0,0.2721443]
[1734332797857,8.63e-05,105020.0,105010.0,0.2721443]
[1734332799345,8.63e-05,105020.0,105010.0,0.33378737]
[1734332799763,8.63e-05,105020.0,105010.0,0.47677807]
[1734332801497,0.48524963,105040.0,105020.0,0.266439]
[1734332801498,0.43693114,105040.0,105020.0,0.266439]
[1734332801699,0.41329583,105040.0,105020.0,0.266439]
[1734332801905,0.60371083,105040.0,105020.0,0.266439]
[1734332802152,0.43278925,105040.0,105020.0,0.266439]
[1734332802355,0.62320425,105040.0,105020.0,0.266439]
[1734332802564,0.43278925,105040.0,105020.0,0.266439]
[1734332802771,0.41329583,105040.0,105020.0,0.266439]
[1734332803628,0.41329583,105040.0,105020.0,0.45687]
[1734332804147,0.41329583,105040.0,105020.0,0.266431]
[1734332804354,0.60371283,105040.0,105020.0,0.266431]
[1734332805018,0.190421,105030.0,105020.0,0.076]
[1734332806367,0.25206407,105030.0,105020.0,0.076]
[1734332806574,0.59854676,105030.0,105010.0,8.63e-05]
[1734332806783,0.29718207,105020.0,105010.0,8.63e-05]
[1734332806993,0.35882514,105020.0,105010.0,8.63e-05]
[1734332807596,0.29718207,105020.0,105010.0,8.63e-05]
[1734332808010,0.37358207,105020.0,105010.0,8.63e-05]
[1734332810149,0.18314307,105020.0,105010.0,8.63e-05]
[1734332810483,0.43522514,105020.0,105010.0,8.63e-05]
[1734332811093,0.52050352,105020.0,105010.0,8.63e-05]
[1734332811879,0.5387578,105020.0,105010.0,8.63e-05]
[1734332812694,0.47711473,105020.0,105010.0,8.63e-05]
[1734332812899,0.5387578,105020.0,105010.0,8.63e-05]
[1734332813297,0.6330485,105020.0,105010.0,8.63e-05]
[1734332815226,0.56704849,105020.0,105010.0,8.63e-05]
[1734332816244,0.41111472,105020.0,105010.0,8.63e-05]
[1734332816646,0.27033635,105020.0,105010.0,8.63e-05]
[1734332818801,0.35560486,105020.0,105010.0,8.63e-05]
[1734332820449,0.16516586,105020.0,105010.0,8.63e-05]
[1734332821159,0.35560486,105020.0,105010.0,8.63e-05]
[1734332822094,0.41724793,105020.0,105010.0,8.63e-05]
[1734332823503,0.49904793,105020.0,105010.0,8.63e-05]
[1734332823709,0.86168591,105020.0,105010.0,8.63e-05]
[1734332823920,0.96137843,105020.0,105010.0,8.63e-05]
[1734332824133,0.96152547,105020.0,105010.0,8.63e-05]
[1734332825151,0.87622428,105020.0,105010.0,8.63e-05]
[1734332825572,0.96152094,105020.0,105010.0,8.63e-05]
[1734332825713,0.75282766,105020.0,105010.0,8.63e-05]
[1734332826315,0.94326666,105020.0,105010.0,8.63e-05]
[1734332827006,0.96117459,105020.0,105010.0,8.63e-05]
[1734332827438,0.66440273,105020.0,105010.0,8.63e-05]
[1734332827736,0.78768887,105020.0,105010.0,8.63e-05]
[1734332830229,0.72168886,105020.0,105010.0,8.63e-05]
[1734332831621,0.66004579,105020.0,105010.0,8.63e-05]
[1734332831852,0.64712914,105020.0,105010.0,8.63e-05]
[1734332832666,0.51588607,105020.0,105010.0,8.63e-05]
[1734332832877,0.38802059,105020.0,105010.0,0.0810863]
[1734332833097,0.44966366,105020.0,105010.0,0.0810863]
[1734332833294,0.47966366,105020.0,105010.0,0.0810863]
[1734332834584,0.47885311,105020.0,105010.0,0.0810863]
[1734332835718,0.04799423,105020.0,105010.0,0.0810863]
[1734332835915,0.01799423,105020.0,105010.0,0.2715443]
[1734332838254,0.20843323,105020.0,105010.0,0.0810863]
[1734332839019,8.63e-05,105020.0,105010.0,0.2715443]
[1734332840218,0.40368927,105030.0,105020.0,0.0821]
[1734332840424,0.46622089,105030.0,105020.0,0.0821]
[1734332840640,0.46602089,105030.0,105020.0,0.0821]
[1734332842625,0.48805657,105030.0,105020.0,0.0821]
[1734332843365,0.21235598,105030.0,105020.0,0.0821]
[1734332843934,0.02212198,105030.0,105020.0,0.272539]
[1734332844266,0.02212198,105030.0,105020.0,0.0821]
[1734332844267,0.21254298,105030.0,105020.0,0.0821]
[1734332846973,0.02212198,105030.0,105020.0,0.272539]
[1734332847243,8.63e-05,105030.0,105020.0,0.272539]
[1734332847939,8.63e-05,105030.0,105010.0,0.4276793]
[1734332848171,8.63e-05,105030.0,105020.0,0.190439]
[1734332850167,8.63e-05,105030.0,105010.0,0.6181243]
[1734332850698,8.63e-05,105030.0,105010.0,0.521967]
[1734332850904,8.63e-05,105030.0,105020.0,0.273639]
[1734332852603,0.1905073,105030.0,105020.0,0.0832]
[1734332853216,0.1905073,105030.0,105010.0,0.4751867]
[1734332853595,0.2205073,105030.0,105010.0,0.6656347]
[1734332854299,0.2205073,105030.0,105010.0,0.4751867]
[1734332856246,0.2205073,105030.0,105010.0,0.5541867]
[1734332856807,0.2205073,105030.0,105010.0,0.5543593]
[1734332858301,0.67929106,105030.0,105010.0,0.0001726]
[1734332858472,0.25208207,105020.0,105010.0,0.0001726]
[1734332858649,0.33398207,105020.0,105010.0,0.0001726]
[1734332859261,0.272339,105020.0,105010.0,0.0001726]
[1734332859859,0.33398207,105020.0,105010.0,0.0001726]
[1734332860439,0.272339,105020.0,105010.0,0.0001726]
[1734332860891,0.190439,105020.0,105010.0,0.0001726]
[1734332861476,0.65573765,105030.0,105010.0,0.0001726]
[1734332862313,0.190439,105020.0,105010.0,0.0001726]
[1734332862649,0.272339,105020.0,105010.0,0.0001726]
[1734332865266,0.0819,105020.0,105010.0,0.0001726]
[1734332865474,0.272339,105020.0,105010.0,0.0001726]
[1734332867924,0.190439,105020.0,105010.0,0.0001726]
[1734332869129,0.1905253,105020.0,105010.0,0.0001726]